bitfinex/quotes_BTCUSD_20250204
["timestamp","ask_amount","ask_price","bid_price","bid_amount"]
[1738666971559,0.0001069,98896.0,98895.0,0.42706106]
[1738666972099,0.0001069,98896.0,98895.0,0.47594944]
[1738666972315,0.0001069,98896.0,98895.0,0.48094944]
[1738666972674,0.0001069,98896.0,98895.0,0.48194944]
[1738666973080,0.0001069,98896.0,98895.0,0.48943287]
[1738666973272,0.0001069,98896.0,98895.0,0.48843287]
[1738666973480,0.0001069,98896.0,98895.0,0.48943287]
[1738666973676,0.2,98920.0,98897.0,0.324672]
[1738666973896,0.2,98920.0,98897.0,0.42705706]
[1738666974498,0.2,98920.0,98897.0,0.74875706]
[1738666974904,0.2,98920.0,98897.0,0.75624049]
[1738666975126,0.2,98920.0,98897.0,0.81012887]
[1738666975916,0.2,98920.0,98897.0,0.81112887]
[1738666979326,0.2,98920.0,98897.0,0.81012887]
[1738666979518,0.2,98920.0,98897.0,0.80612887]
[1738666979693,0.2,98920.0,98897.0,0.81141295]
[1738666979906,0.2,98920.0,98897.0,0.81041295]
[1738666980111,0.2,98920.0,98897.0,0.80541295]
[1738666980319,0.2,98920.0,98897.0,0.80641295]
[1738666981020,0.2,98920.0,98897.0,0.80612887]
[1738666981425,0.2,98920.0,98897.0,0.81112887]
[1738666981629,0.0784,98914.0,98897.0,0.81112887]
[1738666981969,0.0784,98914.0,98897.0,0.80512887]
[1738666982246,0.0784,98914.0,98897.0,0.81112887]
[1738666983721,0.0784,98914.0,98897.0,0.81078899]
[1738666984259,0.0784,98914.0,98897.0,0.80330556]
[1738666984483,0.0457,98903.0,98897.0,0.78030556]
[1738666987722,0.0457,98903.0,98897.0,0.7502204]
[1738666991415,0.0457,98903.0,98897.0,0.64783534]
[1738666992159,0.0815069,98898.0,98897.0,0.32613534]
[1738666992726,0.0001069,98898.0,98897.0,0.32513534]
[1738666992929,0.0001069,98898.0,98897.0,0.4275204]
[1738666993136,0.0001069,98898.0,98897.0,0.4235204]
[1738666993537,0.0001069,98898.0,98897.0,0.32613534]
[1738666994220,0.0001069,98898.0,98897.0,0.35625898]
[1738666994990,0.0001069,98898.0,98897.0,0.35525898]
[1738666995193,0.0001069,98898.0,98897.0,0.35125898]
[1738666995373,0.0001069,98898.0,98897.0,0.32113534]
[1738666995577,0.0001069,98898.0,98897.0,0.4465204]
[1738666995957,0.0001069,98898.0,98897.0,0.4515204]
[1738666996170,7e-07,98900.0,98899.0,0.301669]
[1738666996375,7e-07,98900.0,98899.0,0.42705406]
[1738666996799,7e-07,98900.0,98899.0,0.52475728]
[1738666997057,7e-07,98900.0,98899.0,0.57035728]
[1738666997264,0.0001069,98921.0,98920.0,0.324637]
[1738666997466,0.0002481,98921.0,98920.0,0.42702206]
[1738666997869,0.0002481,98921.0,98920.0,0.47592759]
[1738666999116,0.0002481,98921.0,98920.0,0.47692759]
[1738666999516,0.0002481,98921.0,98920.0,0.45182528]
[1738667000313,0.01013715,98943.0,98937.0,0.301611]
[1738667000525,0.01013715,98943.0,98937.0,0.42699606]
[1738667001762,0.01013715,98943.0,98937.0,0.40399606]
[1738667001962,0.01013715,98943.0,98937.0,0.41571015]
[1738667002182,0.01013715,98943.0,98937.0,0.43451337]
[1738667002389,0.01013715,98943.0,98937.0,0.33212831]
[1738667002600,0.0804,98941.0,98937.0,0.33312831]
[1738667003230,0.0804,98941.0,98937.0,0.32641422]
[1738667003434,0.0804,98941.0,98937.0,0.307611]
[1738667003910,0.0322362,98938.0,98937.0,0.307611]
[1738667004323,0.03698245,98938.0,98937.0,0.157611]
[1738667004528,0.03698245,98938.0,98937.0,0.006]
[1738667004960,0.02698245,98938.0,98937.0,0.006]
[1738667005174,0.03698245,98938.0,98937.0,0.006]
[1738667005384,0.02698245,98938.0,98937.0,0.006]
[1738667012461,0.02698245,98938.0,98937.0,0.25838506]
[1738667012870,0.02698245,98938.0,98818.0,1.74244]
[1738667012871,0.0222362,98938.0,98919.0,0.15375522]
[1738667013075,0.0222362,98938.0,98937.0,1e-08]
[1738667013509,0.02695714,98938.0,98937.0,1e-08]
[1738667013843,0.02706394,98938.0,98937.0,1e-08]
[1738667014430,0.02706394,98938.0,98920.0,0.13839013]
[1738667014668,0.02706394,98938.0,98921.0,0.10238506]
[1738667014927,0.02706394,98938.0,98922.0,0.0012128]
[1738667015138,0.02706394,98938.0,98924.0,0.15]
[1738667015339,0.022343,98938.0,98926.0,0.15]
[1738667015514,0.022343,98938.0,98937.0,0.001]
[1738667015918,0.022343,98938.0,98929.0,0.00121279]
[1738667016520,0.022343,98938.0,98929.0,0.10359785]
[1738667016732,0.022343,98938.0,98930.0,0.10238506]
[1738667017080,0.022343,98938.0,98937.0,0.004]
[1738667017295,0.022343,98938.0,98937.0,0.10638506]
[1738667017490,0.022343,98938.0,98937.0,0.10238506]
[1738667017839,0.022343,98938.0,98937.0,0.11234506]
[1738667018636,0.022343,98938.0,98937.0,0.11334506]
[1738667019142,0.022343,98938.0,98937.0,0.26334506]
[1738667019341,0.022343,98938.0,98937.0,0.26834506]
[1738667020273,0.012343,98938.0,98937.0,0.26334506]
[1738667020589,0.012343,98938.0,98937.0,0.26734506]
[1738667020969,0.012343,98938.0,98937.0,0.26834506]
[1738667021614,0.012343,98938.0,98937.0,0.26734506]
[1738667021824,0.012343,98938.0,98937.0,0.26834506]
[1738667022660,0.012343,98938.0,98937.0,0.26334506]
[1738667022852,0.012343,98938.0,98937.0,0.26734506]
[1738667023385,0.012343,98938.0,98937.0,0.34424506]
[1738667023781,0.012343,98938.0,98937.0,0.26734506]
[1738667024193,0.012343,98938.0,98937.0,0.16496]
[1738667024394,0.012343,98938.0,98937.0,0.16396]
[1738667024812,0.012343,98938.0,98937.0,0.16496]
[1738667025232,0.012343,98938.0,98937.0,0.16396]
[1738667025639,0.012343,98938.0,98937.0,0.16096]
[1738667025860,0.012343,98938.0,98937.0,0.16496]
[1738667026062,0.012343,98938.0,98937.0,0.16518407]
[1738667026286,0.012343,98938.0,98937.0,0.01118407]
[1738667026436,0.012343,98938.0,98937.0,0.01518407]
[1738667027315,0.012343,98938.0,98937.0,0.11656913]
[1738667027522,0.012343,98938.0,98937.0,0.11256913]
[1738667027991,0.012343,98938.0,98937.0,0.11356913]
[1738667028694,0.012343,98938.0,98937.0,0.11256913]
[1738667028902,0.012343,98938.0,98937.0,0.11756913]
[1738667029586,0.00696844,98949.0,98937.0,0.11756913]
[1738667029835,0.00696844,98949.0,98938.0,0.10359766]
[1738667030559,0.00696844,98949.0,98938.0,0.0012126]
[1738667030809,0.00696844,98949.0,98937.0,0.01418407]
[1738667031035,0.00696844,98949.0,98937.0,0.01518407]
[1738667031229,0.00696844,98949.0,98938.0,0.10359775]
[1738667031636,0.00696844,98949.0,98938.0,0.10459775]
[1738667032227,0.00696844,98949.0,98938.0,0.10359775]
[1738667032564,0.00696844,98949.0,98938.0,0.10459775]
[1738667032851,0.00696844,98949.0,98938.0,0.10859775]
[1738667033040,0.00696844,98949.0,98939.0,0.01878942]
[1738667033348,0.00696844,98949.0,98940.0,0.10238506]
[1738667034258,0.00696844,98949.0,98941.0,0.01878942]
[1738667034503,0.00696844,98949.0,98941.0,0.12117448]
[1738667035158,0.00696844,98949.0,98942.0,0.01878942]
[1738667036287,0.00696844,98949.0,98942.0,0.02278942]
[1738667036542,0.00696844,98949.0,98943.0,0.01878942]
[1738667037816,0.00696844,98949.0,98944.0,0.01878942]
[1738667038851,0.00707514,98949.0,98944.0,0.01878942]
[1738667038975,0.00707514,98949.0,98944.0,0.01978942]
[1738667039170,0.00707514,98949.0,98945.0,0.01878942]
[1738667040079,0.00698461,98949.0,98945.0,0.01878942]
[1738667040322,0.00698461,98949.0,98944.0,0.0015]
[1738667040323,0.00698461,98949.0,98946.0,0.01878942]
[1738667041305,0.00698461,98949.0,98947.0,0.01878942]
[1738667042432,0.00698461,98949.0,98948.0,0.01878942]
[1738667044097,0.00698461,98949.0,98948.0,0.02278942]
[1738667044687,0.00698461,98949.0,98948.0,0.005]
[1738667045035,0.00698461,98949.0,98948.0,0.004]
[1738667045470,0.00698461,98949.0,98948.0,0.005]
[1738667045670,0.00698461,98949.0,98948.0,0.001]
[1738667046078,0.02165783,98949.0,98948.0,0.005]
[1738667046282,0.00698461,98949.0,98948.0,0.005]
[1738667048401,0.00698461,98949.0,98948.0,0.004]
[1738667048830,0.00698461,98949.0,98948.0,0.001]
[1738667049205,0.00698461,98949.0,98948.0,0.005]
[1738667049989,0.00698461,98949.0,98948.0,0.001]
[1738667050193,0.00698461,98949.0,98948.0,0.004]
[1738667050391,0.00698461,98949.0,98948.0,0.005]
[1738667050989,0.00698461,98949.0,98948.0,0.004]
[1738667051508,0.00698461,98949.0,98948.0,0.005]
[1738667051711,0.00698461,98949.0,98948.0,0.004]
[1738667051915,0.00698461,98949.0,98947.0,0.00022407]
[1738667052269,0.00698461,98949.0,98948.0,0.005]
[1738667052465,0.00698461,98949.0,98948.0,0.001]
[1738667052927,0.00698461,98949.0,98948.0,0.005]
[1738667053155,0.00698461,98949.0,98948.0,0.001]
[1738667053550,0.00698461,98949.0,98948.0,0.004]
[1738667053689,0.00698461,98949.0,98948.0,0.001]
[1738667054879,0.00698461,98949.0,98948.0,0.10359763]
[1738667055022,0.00698461,98949.0,98948.0,0.10459763]
[1738667055211,0.00698461,98949.0,98948.0,0.10859763]
[1738667055615,0.00698461,98949.0,98948.0,0.25459763]
[1738667055818,0.00698461,98949.0,98948.0,0.25338506]
[1738667056025,0.00698461,98949.0,98948.0,0.25738506]
[1738667056212,0.00698461,98949.0,98948.0,0.33608506]
[1738667056430,0.00698461,98949.0,98948.0,0.41088506]
[1738667056815,0.0001068,98953.0,98948.0,0.41088506]
[1738667056816,0.0001068,98953.0,98949.0,0.173]
[1738667057058,0.00047057,98953.0,98952.0,0.25238506]
[1738667057265,0.00047057,98953.0,98952.0,0.28136093]
[1738667057437,0.00047057,98953.0,98952.0,0.30436093]
[1738667058039,0.00047057,98953.0,98952.0,0.3231376]
[1738667058223,0.05,98960.0,98953.0,0.0993]
[1738667058425,0.05014109,98960.0,98959.0,0.25238506]
[1738667059484,0.05014109,98960.0,98959.0,0.29416173]
[1738667060307,0.05014109,98960.0,98959.0,0.37456173]
[1738667060819,0.05014109,98960.0,98959.0,0.35678506]
[1738667061019,0.05014109,98960.0,98959.0,0.3714727]
[1738667061627,0.05014109,98960.0,98959.0,0.3664727]
[1738667061827,0.05014109,98960.0,98959.0,0.3674727]
[1738667061976,0.05014109,98960.0,98959.0,0.3714727]
[1738667062161,0.05014109,98960.0,98959.0,0.3674727]
[1738667062387,0.0122505,98962.0,98960.0,0.15]
[1738667062388,0.00125233,98962.0,98960.0,0.15]
[1738667062591,0.0001068,98988.0,98961.0,0.18139713]
[1738667062794,0.0001068,98988.0,98979.0,0.10238506]
[1738667062997,0.0001068,98988.0,98980.0,0.00121207]
[1738667063173,0.0001068,98988.0,98981.0,0.10238506]
[1738667063373,0.00197746,99052.0,98982.0,0.0259]
[1738667063581,0.03811804,99078.0,99043.0,0.15]
[1738667063934,0.01,99120.0,99069.0,0.15]
[1738667064133,0.0122505,99160.0,99112.0,0.13717735]
[1738667064134,0.01004,99134.0,99112.0,0.13717735]
[1738667064274,4e-05,99134.0,99113.0,0.15121055]
[1738667064476,0.01090136,99122.0,99113.0,0.15121055]
[1738667065544,0.01090136,99122.0,99115.0,0.15]
[1738667065720,0.01090136,99122.0,99121.0,0.10238506]
[1738667065919,0.01090136,99122.0,99121.0,0.10359535]
[1738667066551,1.51090136,99122.0,99121.0,0.10238506]
[1738667066758,1.51090136,99122.0,99101.0,0.00121051]
[1738667066929,1.56630818,99122.0,99121.0,0.004]
[1738667067390,1.57630818,99122.0,99121.0,0.005]
[1738667067541,1.66700818,99122.0,99121.0,0.005]
[1738667067785,1.91939324,99122.0,99121.0,0.004]
[1738667067971,0.01,99085.0,99050.0,0.20497275]
[1738667068144,0.01,99079.0,99051.0,0.1035961]
[1738667068348,0.01,99078.0,99069.0,0.09023089]
[1738667068621,1.5,99070.0,99069.0,0.09023089]
[1738667068947,1.51,99070.0,99069.0,0.09023089]
[1738667069151,0.00467958,99070.0,99069.0,0.09023089]
[1738667069354,0.00482074,99070.0,99069.0,0.09023089]
[1738667069752,0.0784,99091.0,99069.0,0.09023089]
[1738667069957,0.0784,99091.0,99070.0,0.20618382]
[1738667070431,0.0784,99091.0,99071.0,0.10359613]
[1738667070779,0.0754,99111.0,99080.0,0.20497275]
[1738667071013,0.10238506,99110.0,99070.0,0.20497275]
[1738667071172,0.15,99109.0,99069.0,0.09123089]
[1738667071377,0.25238506,99107.0,99069.0,0.09123089]
[1738667071574,0.25238506,99107.0,99069.0,0.001]
[1738667071796,0.25238506,99107.0,99069.0,0.005]
[1738667071995,0.25238506,99107.0,99070.0,0.20618396]
[1738667072206,0.15,99107.0,99080.0,0.20497275]
[1738667072398,0.08980442,99111.0,99081.0,0.10238506]
[1738667072603,0.0754,99111.0,99081.0,0.10238506]
[1738667072882,0.045,99114.0,99081.0,0.10238506]
[1738667073102,0.10238506,99113.0,99081.0,0.10252603]
[1738667073307,7e-05,99131.0,99100.0,0.20497275]
[1738667073520,7e-05,99131.0,99091.0,0.15]
[1738667073724,0.10238506,99121.0,99091.0,0.15]
[1738667074117,0.10238506,99121.0,99081.0,0.00414097]
[1738667074492,0.10238506,99121.0,99100.0,0.001]
[1738667074702,0.20497275,99120.0,99100.0,0.001]
[1738667075129,0.10238506,99119.0,99100.0,0.001]
[1738667075805,0.10238506,99119.0,99081.0,0.00014097]
[1738667075995,0.0816,99118.0,99081.0,0.00014097]
[1738667076240,0.10238506,99117.0,99081.0,0.00114097]
[1738667076447,0.0816,99118.0,99090.0,0.20497275]
[1738667076646,0.0001065,99121.0,99100.0,0.20497275]
[1738667076851,0.0001065,99121.0,99101.0,0.00121061]
[1738667077055,0.0001065,99121.0,99100.0,0.20497275]
[1738667077278,0.0001065,99121.0,99092.0,0.15]
[1738667077479,0.0001065,99121.0,99094.0,0.15]
[1738667077713,0.0001065,99121.0,99094.0,0.25238506]
[1738667078096,0.0001065,99121.0,99095.0,0.15]
[1738667078500,0.0001065,99121.0,99101.0,0.15]
[1738667078656,0.0001065,99121.0,99111.0,0.20497275]
[1738667078879,0.0001065,99121.0,99112.0,0.10238506]
[1738667079281,0.0001065,99121.0,99113.0,0.00121053]
[1738667079456,0.0001065,99121.0,99114.0,0.10238506]
[1738667079655,0.0001065,99121.0,99115.0,0.00121053]
[1738667079863,0.0001065,99121.0,99116.0,0.10238506]
[1738667080819,0.0001065,99121.0,99117.0,0.00121049]
[1738667081025,0.0001065,99121.0,99119.0,0.15]
[1738667081227,0.0001065,99121.0,99120.0,0.10359538]
[1738667081886,0.0001065,99121.0,99120.0,0.27659538]
[1738667082210,0.0001065,99121.0,99120.0,0.28538506]
[1738667082361,0.0001065,99121.0,99120.0,0.27538506]
[1738667082573,0.0222362,99135.0,99125.0,0.01]
[1738667082804,0.0222362,99135.0,99130.0,0.28538506]
[1738667083165,0.0222362,99135.0,99130.0,0.27538506]
[1738667083971,0.0222362,99135.0,99130.0,0.29371921]
[1738667084173,0.0222362,99135.0,99130.0,0.30371921]
[1738667084658,1e-08,99134.0,99131.0,0.173]
[1738667084836,0.00987161,99135.0,99134.0,0.183]
[1738667085037,0.00369211,99135.0,99134.0,0.28659499]
[1738667085265,0.00369211,99135.0,99134.0,0.28538506]
[1738667085995,0.00369211,99135.0,99134.0,0.29538506]
[1738667086216,0.00369211,99135.0,99134.0,0.29838506]
[1738667086646,0.15,99195.0,99143.0,0.01]
[1738667086805,0.15,99195.0,99146.0,0.27538506]
[1738667087001,0.0783,99196.0,99146.0,0.28538506]
[1738667087206,0.00230589,99147.0,99146.0,0.29538506]
[1738667087591,0.00230589,99147.0,99146.0,0.32827986]
[1738667087996,0.00230589,99147.0,99146.0,0.34661401]
[1738667088361,0.0451,99218.0,99162.0,0.01]
[1738667088562,0.01348565,99163.0,99162.0,0.26238506]
[1738667088736,0.01348565,99163.0,99162.0,0.25238506]
[1738667088937,0.01348565,99163.0,99162.0,0.27538506]
[1738667089142,0.01348565,99163.0,99162.0,0.29371921]
[1738667090662,0.01348565,99163.0,99162.0,0.30539656]
[1738667090863,0.01348565,99163.0,99162.0,0.13239656]
[1738667091097,0.01348565,99163.0,99162.0,0.01833415]
[1738667091296,0.01348565,99163.0,99162.0,0.12071921]
[1738667091633,0.01088565,99163.0,99162.0,0.12071921]
[1738667092128,0.01088565,99163.0,99162.0,0.12371921]
[1738667092344,0.01088565,99163.0,99162.0,0.12071921]
[1738667092757,0.01088565,99163.0,99162.0,0.12371921]
[1738667092972,0.01088565,99163.0,99162.0,0.12071921]
[1738667093385,0.01088565,99163.0,99162.0,0.12371921]
[1738667093706,0.01088565,99163.0,99162.0,0.13265109]
[1738667094091,0.01088565,99163.0,99162.0,0.13565109]
[1738667094252,0.01088565,99163.0,99162.0,0.12371921]
[1738667094605,0.01088565,99163.0,99162.0,0.02133415]
[1738667095364,0.01088565,99163.0,99162.0,0.01833415]
[1738667095539,0.01088565,99163.0,99162.0,0.02133415]
[1738667095719,0.01088565,99163.0,99162.0,0.12371921]
[1738667095919,0.01088565,99163.0,99162.0,0.12071921]
[1738667096121,0.01088565,99163.0,99162.0,0.12371921]
[1738667096583,0.01088565,99163.0,99162.0,0.12071921]
[1738667096785,0.01088565,99163.0,99162.0,0.12371921]
[1738667098376,0.01088565,99163.0,99162.0,0.12071921]
[1738667098515,0.01088565,99163.0,99162.0,0.12371921]
[1738667098720,0.01088565,99163.0,99162.0,0.12071921]
[1738667099126,0.01088565,99163.0,99162.0,0.12371921]
[1738667099326,0.01099215,99163.0,99162.0,0.12371921]
[1738667100616,0.01099215,99163.0,99162.0,0.27492906]
[1738667100890,0.01099215,99163.0,99162.0,0.27371921]
[1738667101426,0.01099215,99163.0,99162.0,0.30328577]
[1738667103159,0.01099215,99163.0,99162.0,0.27371921]
[1738667103556,0.01099215,99163.0,99162.0,0.29671921]
[1738667104112,0.01099215,99163.0,99162.0,0.27371921]
[1738667106150,0.01099215,99163.0,99162.0,0.12371921]
[1738667106650,0.01099215,99163.0,99162.0,0.12492917]
[1738667106801,0.01099215,99163.0,99162.0,0.12371921]
[1738667110003,0.01099215,99163.0,99162.0,0.02133415]
[1738667110118,0.01099215,99163.0,99162.0,0.12371921]
[1738667110959,0.01099215,99163.0,99162.0,0.10238506]
[1738667111361,0.01099215,99163.0,99146.0,0.00022365]
[1738667111620,0.01099215,99163.0,99147.0,0.10238506]
[1738667111771,0.01099215,99163.0,99146.0,0.00022365]
[1738667112538,0.01099215,99163.0,99162.0,0.003]
[1738667112747,0.01099215,99163.0,99162.0,0.00022428]
[1738667113821,0.11337721,99163.0,99162.0,0.003]
[1738667114022,0.01099215,99163.0,99162.0,0.003]
[1738667115129,0.11337721,99163.0,99162.0,0.003]
[1738667115885,0.11337721,99163.0,99146.0,0.00022365]
[1738667116108,0.01099215,99163.0,99162.0,0.003]
[1738667116319,0.01099215,99163.0,99146.0,0.00022365]
[1738667116703,0.01099215,99163.0,99162.0,0.003]
[1738667116901,0.01099215,99163.0,99146.0,0.00022365]
[1738667117325,0.01099215,99163.0,99146.0,0.00322365]
[1738667117482,0.01099215,99163.0,99146.0,0.00022365]
[1738667118112,0.20497275,99160.0,99146.0,0.00022365]
[1738667118313,0.10238506,99159.0,99146.0,0.00022365]
[1738667118871,0.1269,99158.0,99146.0,0.00022365]
[1738667119078,0.15,99156.0,99146.0,0.00022365]
[1738667119284,0.15,99154.0,99146.0,0.00022365]
[1738667119491,0.10238506,99153.0,99146.0,0.00322365]
[1738667119898,0.10238506,99153.0,99146.0,0.00022365]
[1738667120252,0.10238506,99153.0,99146.0,0.00322365]
[1738667120906,0.10238506,99153.0,99146.0,0.00622365]
[1738667121111,0.01,99151.0,99146.0,0.00622365]
[1738667121333,0.10238506,99150.0,99146.0,0.00622365]
[1738667122026,0.10238506,99150.0,99146.0,0.00022365]
[1738667122407,0.10238506,99150.0,99146.0,0.00322365]
[1738667122608,0.10238506,99150.0,99146.0,0.00022365]
[1738667123050,0.10238506,99150.0,99146.0,0.00322365]
[1738667123458,0.01023851,99149.0,99146.0,0.00322365]
[1738667123660,0.10238506,99148.0,99146.0,0.00322365]
[1738667123836,0.01,99104.0,99100.0,3.08424073]
[1738667124039,0.10238506,99103.0,99100.0,3.08424073]
[1738667125210,0.10238506,99103.0,99100.0,3.0843817]
[1738667125415,0.11437772,99103.0,99100.0,3.0843817]
[1738667125760,0.11437772,99103.0,99100.0,3.08460598]
[1738667125957,0.11411596,99103.0,99100.0,3.08460598]
[1738667126302,0.1021233,99103.0,99100.0,3.08660598]
[1738667126611,0.0761,99108.0,99100.0,3.08660598]
[1738667127645,0.17848506,99108.0,99100.0,3.08660598]
[1738667128214,0.10238506,99107.0,99100.0,3.08460598]
[1738667128672,0.15,99106.0,99100.0,3.08560598]
[1738667128866,0.15,99104.0,99100.0,3.08560598]
[1738667129071,0.15,99102.0,99100.0,3.08560598]
[1738667129358,0.10238506,99101.0,99100.0,3.08560598]
[1738667129565,0.25238506,99101.0,99100.0,3.08460598]
[1738667129769,0.26238506,99101.0,99100.0,3.08560598]
[1738667130266,0.26238506,99101.0,99100.0,3.08460598]
[1738667131008,0.40018506,99101.0,99100.0,3.08460598]
[1738667131839,0.40018506,99101.0,99100.0,3.08660598]
[1738667132230,0.4120943,99101.0,99100.0,3.08660598]
[1738667132434,0.4140943,99101.0,99100.0,3.08660598]
[1738667133182,0.3535943,99101.0,99100.0,3.08660598]
[1738667133359,0.4140943,99101.0,99100.0,3.08660598]
[1738667134705,0.4120943,99101.0,99100.0,3.08460598]
[1738667135135,0.4140943,99101.0,99100.0,3.08460598]
[1738667135534,0.4120943,99101.0,99100.0,3.08460598]
[1738667136036,0.4140943,99101.0,99100.0,3.08460598]
[1738667138009,0.42064709,99101.0,99100.0,3.08460598]
[1738667138223,0.4590118,99101.0,99100.0,3.08460598]
[1738667138400,0.40594709,99101.0,99100.0,3.08460598]
[1738667138603,0.41048122,99101.0,99100.0,3.08460598]
[1738667138826,0.40594709,99101.0,99100.0,3.08460598]
[1738667139063,0.40394709,99101.0,99100.0,3.08460598]
[1738667139280,0.40594709,99101.0,99100.0,3.08460598]
[1738667140670,0.3893943,99101.0,99100.0,3.08460598]
[1738667140929,0.2642943,99101.0,99100.0,3.08460598]
[1738667141279,0.2662943,99101.0,99100.0,3.08460598]
[1738667141674,0.2642943,99101.0,99100.0,3.08460598]
[1738667142756,0.2652943,99101.0,99100.0,3.08660598]
[1738667142914,0.2652943,99101.0,99100.0,3.08460598]
[1738667143436,0.2652943,99101.0,99100.0,3.08660598]
[1738667143639,0.001,99101.0,99100.0,3.08660598]
[1738667144020,0.0001069,99103.0,99100.0,3.08660598]
[1738667144727,0.0001069,99103.0,99100.0,3.08460598]
[1738667144931,0.0001069,99103.0,99100.0,3.08660598]
[1738667145350,0.0001069,99103.0,99100.0,3.08460598]
[1738667145549,0.0001069,99103.0,99100.0,3.08760598]
[1738667147964,0.10238506,99102.0,99100.0,3.08760598]
[1738667148375,0.00719688,99101.0,99100.0,3.08760598]
[1738667148647,0.10958194,99101.0,99100.0,3.08760598]
[1738667148803,0.10238506,99101.0,99100.0,3.08460598]
[1738667149244,0.10238506,99101.0,99100.0,3.08760598]
[1738667149446,0.10238506,99101.0,99100.0,3.08460598]
[1738667149802,0.10238506,99101.0,99100.0,3.08760598]
[1738667151078,0.11387788,99101.0,99100.0,3.08760598]
[1738667151282,0.0001069,99103.0,99100.0,3.08760598]
[1738667152249,0.0001069,99103.0,99100.0,3.08460598]
[1738667152836,0.0001069,99103.0,99100.0,3.08760598]
[1738667153251,0.0001069,99103.0,99101.0,0.01869623]
[1738667154891,0.0001069,99103.0,99102.0,0.01869623]
[1738667156081,0.0001069,99103.0,99102.0,0.02169623]
[1738667156481,0.0001069,99103.0,99102.0,0.14708129]
[1738667156690,0.0001069,99103.0,99102.0,0.02169623]
[1738667157205,0.0001069,99103.0,99102.0,0.14829207]
[1738667157416,0.0001069,99103.0,99102.0,0.27959584]
[1738667157637,0.0001069,99103.0,99102.0,0.40568506]
[1738667157839,0.15,99161.0,99103.0,0.173]
[1738667158038,0.15,99159.0,99121.0,0.023]
[1738667158214,0.15,99157.0,99123.0,0.023]
[1738667158440,0.15,99157.0,99127.0,0.023]
[1738667158654,0.01028117,99156.0,99127.0,0.12538506]
[1738667158845,0.10238506,99155.0,99126.0,0.0813]
[1738667159298,0.01027826,99154.0,99126.0,0.0813]
[1738667159474,0.11266332,99154.0,99126.0,0.0813]
[1738667160254,0.10238506,99153.0,99114.0,0.0771]
[1738667160471,0.20497275,99150.0,99114.0,0.17948506]
[1738667160672,0.10238506,99149.0,99105.0,0.0771]
[1738667160918,0.15,99139.0,99105.0,0.01123062]
[1738667161093,0.15,99137.0,99100.0,3.08460598]
[1738667161298,0.15,99135.0,99100.0,3.08460598]
[1738667161565,0.15,99119.0,99100.0,3.08460598]
[1738667161801,0.15,99117.0,99100.0,3.08460598]
[1738667161995,0.15,99115.0,99100.0,3.08460598]
[1738667162210,0.10238506,99114.0,99100.0,3.08460598]
[1738667162826,0.10238506,99114.0,99100.0,3.08760598]
[1738667163218,0.10238506,99114.0,99100.0,3.08460598]
[1738667163435,0.10238506,99114.0,99100.0,3.08760598]
[1738667164896,0.10238506,99114.0,99100.0,3.08460598]
[1738667165102,0.10238506,99114.0,99100.0,3.08760598]
[1738667166743,0.15038506,99114.0,99100.0,3.08760598]
[1738667167589,0.15,99109.0,99100.0,3.08760598]
[1738667167800,0.15,99107.0,99100.0,3.08760598]
[1738667168046,0.10238506,99106.0,99100.0,3.08460598]
[1738667168270,0.10238506,99106.0,99100.0,3.08760598]
[1738667168708,0.15,99105.0,99100.0,3.08460598]
[1738667168928,0.15,99103.0,99100.0,3.08760598]
[1738667169134,0.15,99101.0,99100.0,3.08460598]
[1738667169368,0.25238506,99101.0,99100.0,3.08460598]
[1738667169591,0.25238506,99101.0,99100.0,3.08760598]
[1738667169815,0.33938506,99101.0,99100.0,3.08760598]
[1738667170032,0.33938506,99101.0,99100.0,3.08460598]
[1738667170856,0.50227514,99101.0,99100.0,3.08460598]
[1738667171097,0.5089383,99101.0,99100.0,3.08460598]
[1738667171314,0.51935548,99101.0,99100.0,3.08460598]
[1738667171529,2.01935548,99101.0,99100.0,3.08760598]
[1738667171743,2.09620801,99101.0,99100.0,3.08460598]
[1738667172169,2.10620801,99101.0,99100.0,3.08460598]
[1738667172407,2.10620801,99101.0,99100.0,3.05045066]
[1738667172649,2.03235548,99101.0,99100.0,3.05045066]
[1738667173770,2.03235548,99101.0,99100.0,3.01013508]
[1738667173980,2.05115448,99101.0,99100.0,3.01013508]
[1738667175215,0.54449132,99101.0,99100.0,3.01013508]
[1738667176071,0.54449132,99101.0,99100.0,3.16149708]
[1738667176072,0.03221618,99101.0,99100.0,3.16149708]
[1738667176285,0.03221618,99101.0,99100.0,3.01013508]
[1738667176497,0.10538506,99101.0,99100.0,3.01013508]
[1738667176936,0.10238506,99101.0,99100.0,3.01013508]
[1738667177349,0.08900454,99107.0,99100.0,3.21195008]
[1738667177553,0.08900454,99107.0,99101.0,0.15136]
[1738667177759,0.08900454,99107.0,99103.0,0.151356]
[1738667177960,0.0001069,99114.0,99101.0,0.15136]
[1738667178164,0.10238506,99113.0,99100.0,3.01313508]
[1738667178364,0.201802,99107.0,99100.0,3.01313508]
[1738667178587,0.10238506,99106.0,99100.0,3.01013508]
[1738667178922,0.10238506,99106.0,99101.0,0.003]
[1738667179553,0.10238506,99106.0,99100.0,3.01013508]
[1738667180497,0.25373806,99106.0,99100.0,3.01013508]
[1738667180697,0.151358,99103.0,99100.0,3.01013508]
[1738667180910,0.10238506,99102.0,99100.0,3.01013508]
[1738667181108,0.10238506,99102.0,99100.0,3.01313508]
[1738667181356,0.15136,99101.0,99100.0,3.01013508]
[1738667181553,0.10238506,99101.0,99100.0,3.01013508]
[1738667181763,0.10238506,99101.0,99100.0,3.01113508]
[1738667182389,0.10238506,99101.0,99100.0,3.01213508]
[1738667182800,0.10238506,99101.0,99100.0,3.01013508]
[1738667183010,0.28416357,99101.0,99100.0,3.01013508]
[1738667183226,0.40374506,99101.0,99100.0,3.01013508]
[1738667183434,0.40932748,99101.0,99100.0,3.01013508]
[1738667183651,1.91932748,99101.0,99100.0,3.01013508]
[1738667183871,1.93778402,99101.0,99100.0,3.01013508]
[1738667184128,2.04027874,99101.0,99100.0,3.01013508]
[1738667184372,0.00558242,99101.0,99100.0,3.38878214]
[1738667184628,0.08900454,99141.0,99113.0,0.151342]
[1738667184879,0.08900454,99141.0,99113.0,0.174342]
[1738667185114,0.08900454,99141.0,99113.0,0.151342]
[1738667185956,0.08900454,99141.0,99113.0,0.154342]
[1738667186320,0.08900454,99141.0,99113.0,0.16256923]
[1738667186678,0.08900454,99119.0,99113.0,0.16556923]
[1738667187795,0.08900454,99119.0,99113.0,0.16256923]
[1738667188161,0.08900454,99119.0,99113.0,0.16556923]
[1738667188565,0.0001069,99157.0,99156.0,0.151276]